[Event "*** SCC Grand Prix: Titled Tuesday Blitz"]
[Site "Chess.com"]
[Date "2020.10.13"]
[Round "4"]
[White "Kaua18"]
[Black "Margency"]
[Result "0-1"]
[WhiteElo "2347"]
[BlackElo "2603"]
[TimeControl "180+1"]
[EndTime "10:39:44 PDT"]
[Termination "Margency won by resignation"]

1. e4 {[%clk 0:02:59.1]} 1... c5 {[%clk 0:02:48.6]} 2. Nf3 {[%clk 0:02:59.3]}
2... d6 {[%clk 0:02:48.7]} 3. d4 {[%clk 0:02:59.5]} 3... cxd4 {[%clk 0:02:49.3]}
4. Nxd4 {[%clk 0:03:00.3]} 4... Nf6 {[%clk 0:02:50]} 5. Nc3 {[%clk 0:03:00.8]}
5... a6 {[%clk 0:02:50.7]} 6. h3 {[%clk 0:03:01.3]} 6... e6 {[%clk 0:02:51]} 7.
g4 {[%clk 0:03:00.9]} 7... h6 {[%clk 0:02:51.4]} 8. Bg2 {[%clk 0:03:00.9]} 8...
g5 {[%clk 0:02:51.4]} 9. Be3 {[%clk 0:02:58.8]} 9... Nbd7 {[%clk 0:02:50.5]} 10.
a4 {[%clk 0:02:58.5]} 10... Ne5 {[%clk 0:02:48.2]} 11. Qe2 {[%clk 0:02:55.3]}
11... Bd7 {[%clk 0:02:46.5]} 12. f4 {[%clk 0:02:54.6]} 12... gxf4 {[%clk
0:02:45.9]} 13. Bxf4 {[%clk 0:02:55.5]} 13... Rc8 {[%clk 0:02:46.2]} 14. O-O
{[%clk 0:02:52.9]} 14... Be7 {[%clk 0:02:43.6]} 15. Rad1 {[%clk 0:02:47.2]}
15... Qb6 {[%clk 0:02:41.8]} 16. Kh2 {[%clk 0:02:43.1]} 16... Qxb2 {[%clk
0:02:38.3]} 17. Nb1 {[%clk 0:02:26.5]} 17... Bxa4 {[%clk 0:02:23.8]} 18. Bg3
{[%clk 0:01:40]} 18... Qb6 {[%clk 0:02:11.3]} 19. Nd2 {[%clk 0:01:11]} 19...
Qxd4 {[%clk 0:02:05.2]} 20. Nf3 {[%clk 0:01:11.2]} 20... Nxf3+ {[%clk
0:01:54.9]} 21. Rxf3 {[%clk 0:01:12.1]} 21... Qc4 {[%clk 0:01:51.1]} 22. Qe3
{[%clk 0:00:45]} 22... Qc5 {[%clk 0:01:37.9]} 23. Qe2 {[%clk 0:00:34.1]} 23...
Bb5 {[%clk 0:01:36.7]} 24. Qe1 {[%clk 0:00:33.9]} 24... Nd7 {[%clk 0:01:30.6]}
25. e5 {[%clk 0:00:14]} 25... Nxe5 {[%clk 0:01:27.8]} 26. Rf2 {[%clk 0:00:09.5]}
26... Bc6 {[%clk 0:01:25.2]} 27. Bxc6+ {[%clk 0:00:05.7]} 27... Qxc6 {[%clk
0:01:25.5]} 28. Qf1 {[%clk 0:00:05.9]} 28... Rh7 {[%clk 0:01:11.7]} 29. Re1
{[%clk 0:00:03.4]} 29... Qc4 {[%clk 0:01:06.4]} 30. Qg2 {[%clk 0:00:02.1]} 30...
Qc6 {[%clk 0:01:04.9]} 31. Qf1 {[%clk 0:00:02.4]} 31... h5 {[%clk 0:01:01.7]}
32. gxh5 {[%clk 0:00:01.1]} 32... Rxh5 {[%clk 0:00:48.8]} 33. Bxe5 {[%clk
0:00:01.3]} 33... Rxe5 {[%clk 0:00:48.7]} 34. Rxe5 {[%clk 0:00:01.6]} 34... dxe5
{[%clk 0:00:48.9]} 35. Rxf7 {[%clk 0:00:02.1]} 35... Qxc2+ {[%clk 0:00:49]} 36.
Rf2 {[%clk 0:00:02.8]} 36... Qh7 {[%clk 0:00:38]} 37. Qg2 {[%clk 0:00:02.3]}
37... e4 {[%clk 0:00:35.4]} 38. Qg3 {[%clk 0:00:02.6]} 38... e3 {[%clk 0:00:31]}
39. Qxe3 {[%clk 0:00:01.9]} 39... Rc2 {[%clk 0:00:28.7]} 40. Rxc2 {[%clk
0:00:01.4]} 40... Qxc2+ {[%clk 0:00:29.6]} 41. Kg3 {[%clk 0:00:02.1]} 41... Qf5
{[%clk 0:00:27.6]} 42. Qa7 {[%clk 0:00:01.5]} 42... Bd6+ {[%clk 0:00:25.9]} 43.
Kg2 {[%clk 0:00:01.2]} 43... Qd5+ {[%clk 0:00:26]} 44. Kf2 {[%clk 0:00:01.6]}
44... Bc5+ {[%clk 0:00:26]} 45. Qxc5 {[%clk 0:00:01.8]} 45... Qxc5+ {[%clk
0:00:26.4]} 0-1

[Event "*** SCC Grand Prix: Titled Tuesday Blitz"]
[Site "Chess.com"]
[Date "2020.10.13"]
[Round "4"]
[White "alejanchess73"]
[Black "paulrusan"]
[Result "0-1"]
[WhiteElo "2390"]
[BlackElo "2228"]
[TimeControl "180+1"]
[EndTime "10:39:44 PDT"]
[Termination "paulrusan won by checkmate"]

1. d4 {[%clk 0:03:00.9]} 1... Nf6 {[%clk 0:02:26]} 2. c4 {[%clk 0:02:58.7]} 2...
g6 {[%clk 0:02:26]} 3. Nc3 {[%clk 0:02:57.9]} 3... Bg7 {[%clk 0:02:26.2]} 4. Nf3
{[%clk 0:02:57.4]} 4... d6 {[%clk 0:02:25.5]} 5. e3 {[%clk 0:02:57.7]} 5... O-O
{[%clk 0:02:25.1]} 6. Be2 {[%clk 0:02:58.3]} 6... Nbd7 {[%clk 0:02:24.8]} 7. O-O
{[%clk 0:02:58.2]} 7... e5 {[%clk 0:02:24.9]} 8. Qc2 {[%clk 0:02:56.9]} 8... Re8
{[%clk 0:02:24.6]} 9. h3 {[%clk 0:02:56.3]} 9... Qe7 {[%clk 0:02:23.1]} 10. Rd1
{[%clk 0:02:53.7]} 10... e4 {[%clk 0:02:19.8]} 11. Nd2 {[%clk 0:02:53]} 11... h5
{[%clk 0:02:20.1]} 12. b4 {[%clk 0:02:51.9]} 12... Nf8 {[%clk 0:02:19.8]} 13.
Bf1 {[%clk 0:02:50.4]} 13... Bf5 {[%clk 0:02:18.8]} 14. a4 {[%clk 0:02:49.6]}
14... Ne6 {[%clk 0:02:18.1]} 15. Nb3 {[%clk 0:02:46.5]} 15... h4 {[%clk
0:02:08.4]} 16. Ba3 {[%clk 0:02:46.1]} 16... c6 {[%clk 0:02:04.8]} 17. Rab1
{[%clk 0:02:44.7]} 17... Ng5 {[%clk 0:01:56.7]} 18. d5 {[%clk 0:02:43.8]} 18...
cxd5 {[%clk 0:01:53.5]} 19. Nxd5 {[%clk 0:02:42.5]} 19... Nxd5 {[%clk
0:01:53.1]} 20. Rxd5 {[%clk 0:02:41.6]} 20... Be5 {[%clk 0:01:32.2]} 21. Rbd1
{[%clk 0:02:36.7]} 21... Nf3+ {[%clk 0:01:26.6]} 22. Kh1 {[%clk 0:02:32.3]}
22... Qg5 {[%clk 0:01:20.3]} 23. Nd4 {[%clk 0:02:22.1]} 23... Nxd4 {[%clk
0:00:40]} 24. exd4 {[%clk 0:02:15.4]} 24... e3 {[%clk 0:00:37.5]} 25. Qe2 {[%clk
0:02:03.4]} 25... Bf4 {[%clk 0:00:36]} 26. Bc1 {[%clk 0:01:53.7]} 26... exf2
{[%clk 0:00:34.5]} 27. Bxf4 {[%clk 0:01:50.7]} 27... Rxe2 {[%clk 0:00:34]} 28.
Bxg5 {[%clk 0:01:49.1]} 28... Re1 {[%clk 0:00:34.3]} 29. Bxh4 {[%clk 0:01:35.1]}
29... Rxd1 {[%clk 0:00:34.3]} 30. Bxf2 {[%clk 0:01:34.7]} 30... Rxf1+ {[%clk
0:00:34.4]} 31. Bg1 {[%clk 0:01:35.3]} 31... Re8 {[%clk 0:00:33.9]} 32. Rxd6
{[%clk 0:01:35.1]} 32... Ree1 {[%clk 0:00:33.6]} 33. Kh2 {[%clk 0:01:34.6]}
33... Rxg1 {[%clk 0:00:33.4]} 34. d5 {[%clk 0:01:35.3]} 34... Be4 {[%clk
0:00:33]} 35. Rd8+ {[%clk 0:01:34.6]} 35... Kg7 {[%clk 0:00:32.8]} 36. Kg3
{[%clk 0:01:34.6]} 36... Rxg2+ {[%clk 0:00:32.6]} 37. Kf4 {[%clk 0:01:35.2]}
37... Bf5 {[%clk 0:00:29.4]} 38. d6 {[%clk 0:01:34.9]} 38... Rd2 {[%clk
0:00:25.5]} 39. c5 {[%clk 0:01:33.7]} 39... Red1 {[%clk 0:00:24.3]} 40. h4
{[%clk 0:01:33.2]} 40... b6 {[%clk 0:00:23.1]} 41. Ra8 {[%clk 0:01:29.5]} 41...
bxc5 {[%clk 0:00:22.1]} 42. bxc5 {[%clk 0:01:29.9]} 42... Rd5 {[%clk 0:00:21.7]}
43. c6 {[%clk 0:01:26.6]} 43... R1d4+ {[%clk 0:00:20.4]} 44. Ke3 {[%clk
0:01:25.8]} 44... Rxd6 {[%clk 0:00:20.1]} 45. c7 {[%clk 0:01:25.8]} 45... Rd3+
{[%clk 0:00:19]} 46. Ke2 {[%clk 0:01:26.2]} 46... Rc3 {[%clk 0:00:18.7]} 47.
Rxa7 {[%clk 0:01:24.4]} 47... Rdc6 {[%clk 0:00:18.5]} 48. a5 {[%clk 0:01:23.9]}
48... Rxc7 {[%clk 0:00:18.5]} 49. Ra8 {[%clk 0:01:24.6]} 49... Rc8 {[%clk
0:00:17.9]} 50. Ra7 {[%clk 0:01:24.4]} 50... R3c7 {[%clk 0:00:18]} 51. Ra6
{[%clk 0:01:24.7]} 51... Rd7 {[%clk 0:00:16.9]} 52. Rb6 {[%clk 0:01:23.1]} 52...
Ra8 {[%clk 0:00:16.1]} 53. a6 {[%clk 0:01:23]} 53... Rda7 {[%clk 0:00:16.2]} 54.
h5 {[%clk 0:01:22.6]} 54... Rxa6 {[%clk 0:00:16]} 55. Rb5 {[%clk 0:01:22.9]}
55... Ra5 {[%clk 0:00:14.7]} 56. Rb4 {[%clk 0:01:22.7]} 56... Ra4 {[%clk
0:00:14.4]} 57. Rb6 {[%clk 0:01:21.9]} 57... gxh5 {[%clk 0:00:14]} 58. Ke3
{[%clk 0:01:22.5]} 58... h4 {[%clk 0:00:13.9]} 59. Kf3 {[%clk 0:01:22.7]} 59...
h3 {[%clk 0:00:13.4]} 60. Kg3 {[%clk 0:01:22.9]} 60... Ra3+ {[%clk 0:00:13.7]}
61. Kh4 {[%clk 0:01:23.2]} 61... h2 {[%clk 0:00:11.9]} 62. Kg5 {[%clk
0:01:23.5]} 62... Be6 {[%clk 0:00:10.9]} 63. Rb1 {[%clk 0:01:22.6]} 63... Ra1
{[%clk 0:00:09.9]} 64. Rb8 {[%clk 0:01:18.2]} 64... Rxb8 {[%clk 0:00:09.1]} 65.
Kf4 {[%clk 0:01:17.4]} 65... h1=Q {[%clk 0:00:07.5]} 66. Ke5 {[%clk 0:01:17.8]}
66... Qe1+ {[%clk 0:00:06.4]} 67. Kd6 {[%clk 0:01:18.1]} 67... Rd1+ {[%clk
0:00:06]} 68. Kc7 {[%clk 0:01:18.4]} 68... Qc3+ {[%clk 0:00:05]} 69. Kxb8 {[%clk
0:01:18]} 69... Rb1+ {[%clk 0:00:05.1]} 70. Ka7 {[%clk 0:01:17.5]} 70... Qa3#
{[%clk 0:00:05.8]} 0-1

[Event "*** SCC Grand Prix: Titled Tuesday Blitz"]
[Site "Chess.com"]
[Date "2020.10.13"]
[Round "4"]
[White "Oligan22"]
[Black "nitpicker"]
[Result "0-1"]
[WhiteElo "2425"]
[BlackElo "2291"]
[TimeControl "180+1"]
[EndTime "10:39:46 PDT"]
[Termination "nitpicker won by resignation"]

1. e4 {[%clk 0:03:00.9]} 1... d5 {[%clk 0:02:59.7]} 2. exd5 {[%clk 0:03:00.3]}
2... Qxd5 {[%clk 0:02:59.8]} 3. Nf3 {[%clk 0:03:00]} 3... Nf6 {[%clk 0:02:59]}
4. d4 {[%clk 0:02:59.5]} 4... c6 {[%clk 0:02:58]} 5. c4 {[%clk 0:02:58.9]} 5...
Qd8 {[%clk 0:02:57.8]} 6. Be3 {[%clk 0:02:56.3]} 6... Bf5 {[%clk 0:02:56.9]} 7.
Nc3 {[%clk 0:02:55.7]} 7... e6 {[%clk 0:02:57]} 8. Be2 {[%clk 0:02:55.5]} 8...
h6 {[%clk 0:02:57.1]} 9. O-O {[%clk 0:02:54.9]} 9... Be7 {[%clk 0:02:46]} 10. h3
{[%clk 0:02:55]} 10... Nbd7 {[%clk 0:02:38.6]} 11. Qb3 {[%clk 0:02:51.9]} 11...
Qb6 {[%clk 0:02:13.7]} 12. Qxb6 {[%clk 0:02:26.9]} 12... axb6 {[%clk 0:02:11.9]}
13. b3 {[%clk 0:02:24.5]} 13... O-O {[%clk 0:02:10.8]} 14. Rfd1 {[%clk 0:02:23]}
14... Rfc8 {[%clk 0:02:06.6]} 15. Ne5 {[%clk 0:02:19.6]} 15... Bb4 {[%clk
0:01:44.7]} 16. Na4 {[%clk 0:02:13.3]} 16... Bc2 {[%clk 0:01:05.4]} 17. Rdc1
{[%clk 0:02:11.2]} 17... Bf5 {[%clk 0:01:00.7]} 18. g4 {[%clk 0:02:10.8]} 18...
Bh7 {[%clk 0:00:59.6]} 19. h4 {[%clk 0:02:09.4]} 19... Nxe5 {[%clk 0:00:48.3]}
20. dxe5 {[%clk 0:02:07.5]} 20... Nd7 {[%clk 0:00:48.3]} 21. Nxb6 {[%clk
0:02:01.9]} 21... Nxb6 {[%clk 0:00:47.9]} 22. Bxb6 {[%clk 0:02:02.8]} 22... c5
{[%clk 0:00:39.6]} 23. a4 {[%clk 0:01:54.8]} 23... Be4 {[%clk 0:00:34.4]} 24. a5
{[%clk 0:01:53.6]} 24... Rc6 {[%clk 0:00:29.6]} 25. f3 {[%clk 0:01:48.9]} 25...
Bh7 {[%clk 0:00:27.8]} 26. Kf2 {[%clk 0:01:46.2]} 26... Rcc8 {[%clk 0:00:25.3]}
27. Ke3 {[%clk 0:01:36.7]} 27... Ra6 {[%clk 0:00:24.6]} 28. f4 {[%clk
0:01:35.3]} 28... Rca8 {[%clk 0:00:24.2]} 29. Bf3 {[%clk 0:01:22.4]} 29... Bxa5
{[%clk 0:00:23.7]} 30. Bxb7 {[%clk 0:01:20.7]} 30... Rxb6 {[%clk 0:00:19.1]} 31.
Bxa8 {[%clk 0:01:18]} 31... Rxb3+ {[%clk 0:00:19.1]} 32. Kf2 {[%clk 0:01:06.3]}
32... Bc3 {[%clk 0:00:18.7]} 33. Ra2 {[%clk 0:01:02.5]} 33... Bd3 {[%clk
0:00:16.7]} 34. Rd1 {[%clk 0:00:54.3]} 34... Bd4+ {[%clk 0:00:16]} 35. Kg2
{[%clk 0:00:54.8]} 35... Bxc4 {[%clk 0:00:15]} 36. Be4 {[%clk 0:00:50.3]} 36...
g6 {[%clk 0:00:14]} 37. h5 {[%clk 0:00:48.5]} 37... Re3 {[%clk 0:00:13.5]} 38.
Bf3 {[%clk 0:00:42.8]} 38... Bxa2 {[%clk 0:00:13.1]} 39. hxg6 {[%clk 0:00:37.8]}
39... fxg6 {[%clk 0:00:12.7]} 40. Rc1 {[%clk 0:00:36.6]} 40... Bd5 {[%clk
0:00:12.6]} 41. Bxd5 {[%clk 0:00:36.1]} 41... exd5 {[%clk 0:00:12.3]} 42. Rb1
{[%clk 0:00:36.6]} 42... g5 {[%clk 0:00:10.2]} 43. f5 {[%clk 0:00:34.2]} 43...
Bxe5 {[%clk 0:00:09.4]} 44. Rb7 {[%clk 0:00:34.8]} 44... Bf4 {[%clk 0:00:08.2]}
45. f6 {[%clk 0:00:32.5]} 45... d4 {[%clk 0:00:08.1]} 46. Rg7+ {[%clk 0:00:29]}
46... Kf8 {[%clk 0:00:07.2]} 47. Rd7 {[%clk 0:00:26.7]} 47... d3 {[%clk
0:00:06.9]} 48. Kf2 {[%clk 0:00:26.8]} 48... d2 {[%clk 0:00:05.2]} 49. Rxd2
{[%clk 0:00:25.1]} 49... Re6 {[%clk 0:00:05]} 0-1

[Event "*** SCC Grand Prix: Titled Tuesday Blitz"]
[Site "Chess.com"]
[Date "2020.10.13"]
[Round "4"]
[White "C_K_G"]
[Black "HanSchut"]
[Result "1-0"]
[WhiteElo "2032"]
[BlackElo "2227"]
[TimeControl "180+1"]
[EndTime "10:39:46 PDT"]
[Termination "C_K_G won on time"]

1. e4 {[%clk 0:02:51]} 1... c5 {[%clk 0:02:59.9]} 2. Nf3 {[%clk 0:02:50.7]} 2...
d6 {[%clk 0:03:00.4]} 3. d4 {[%clk 0:02:51.2]} 3... cxd4 {[%clk 0:03:01.3]} 4.
Nxd4 {[%clk 0:02:51.5]} 4... Nf6 {[%clk 0:03:01.9]} 5. Nc3 {[%clk 0:02:51.8]}
5... a6 {[%clk 0:03:02.5]} 6. Be2 {[%clk 0:02:52.1]} 6... e5 {[%clk 0:03:02.6]}
7. Nb3 {[%clk 0:02:51.5]} 7... Be6 {[%clk 0:03:03.1]} 8. Be3 {[%clk 0:02:51.8]}
8... Be7 {[%clk 0:03:02.8]} 9. f4 {[%clk 0:02:51.5]} 9... exf4 {[%clk
0:03:01.7]} 10. Bxf4 {[%clk 0:02:50.8]} 10... Nc6 {[%clk 0:03:02.3]} 11. O-O
{[%clk 0:02:47.9]} 11... O-O {[%clk 0:02:56.7]} 12. Nd5 {[%clk 0:02:44.8]} 12...
Ne5 {[%clk 0:02:43]} 13. Nxe7+ {[%clk 0:02:12.7]} 13... Qxe7 {[%clk 0:02:42.6]}
14. Bg5 {[%clk 0:01:59.7]} 14... Ned7 {[%clk 0:02:40.5]} 15. Nd4 {[%clk
0:01:57.6]} 15... Rac8 {[%clk 0:02:31.3]} 16. Bd3 {[%clk 0:01:53.5]} 16... Qd8
{[%clk 0:02:07.9]} 17. Qe1 {[%clk 0:01:40.2]} 17... Qb6 {[%clk 0:02:01.1]} 18.
c3 {[%clk 0:01:36.2]} 18... Bc4 {[%clk 0:01:30.7]} 19. Rd1 {[%clk 0:01:17.7]}
19... Bxd3 {[%clk 0:01:19.6]} 20. Rxd3 {[%clk 0:01:18.6]} 20... Ne5 {[%clk
0:01:20]} 21. Rh3 {[%clk 0:01:15.3]} 21... Nfg4 {[%clk 0:00:56.4]} 22. Rg3
{[%clk 0:00:58.6]} 22... h6 {[%clk 0:00:50.6]} 23. Bc1 {[%clk 0:00:51.5]} 23...
Kh7 {[%clk 0:00:24.2]} 24. h3 {[%clk 0:00:44.4]} 24... Nf6 {[%clk 0:00:24.5]}
25. Rxf6 {[%clk 0:00:35.8]} 25... gxf6 {[%clk 0:00:25.4]} 26. Qe3 {[%clk
0:00:34.7]} 26... Ng6 {[%clk 0:00:14]} 27. Qxh6+ {[%clk 0:00:32.9]} 27... Kg8
{[%clk 0:00:14.5]} 28. Kh2 {[%clk 0:00:28.3]} 28... Rc5 {[%clk 0:00:10.1]} 29.
Nf5 {[%clk 0:00:25.5]} 29... Rxf5 {[%clk 0:00:10.2]} 30. exf5 {[%clk 0:00:25.4]}
30... Qf2 {[%clk 0:00:04]} 31. fxg6 {[%clk 0:00:21]} 31... Qxg3+ {[%clk
0:00:04.6]} 32. Kxg3 {[%clk 0:00:20]} 32... fxg6 {[%clk 0:00:05.5]} 33. Qxg6+
{[%clk 0:00:19.9]} 33... Kh8 {[%clk 0:00:06.2]} 34. Qh6+ {[%clk 0:00:19.2]}
34... Kg8 {[%clk 0:00:06.5]} 35. Bf4 {[%clk 0:00:18.9]} 35... Kf7 {[%clk
0:00:06.5]} 36. Bxd6 {[%clk 0:00:17]} 36... Rg8+ {[%clk 0:00:06.7]} 37. Kf4
{[%clk 0:00:17.1]} 37... Ke6 {[%clk 0:00:07.2]} 38. Bc5 {[%clk 0:00:16]} 38...
Rc8 {[%clk 0:00:06.9]} 39. Bd4 {[%clk 0:00:15.7]} 39... Rc6 {[%clk 0:00:04.6]}
40. Qxf6+ {[%clk 0:00:15]} 40... Kd7 {[%clk 0:00:05.5]} 41. Qf7+ {[%clk
0:00:15.1]} 41... Kc8 {[%clk 0:00:05.3]} 42. Be5 {[%clk 0:00:15.1]} 42... Rc4+
{[%clk 0:00:04.3]} 43. Qxc4+ {[%clk 0:00:14.7]} 43... Kd7 {[%clk 0:00:03.8]} 44.
Qf7+ {[%clk 0:00:14.5]} 1-0

[Event "*** SCC Grand Prix: Titled Tuesday Blitz"]
[Site "Chess.com"]
[Date "2020.10.13"]
[Round "4"]
[White "Castleqweenside7447"]
[Black "glebus008"]
[Result "0-1"]
[WhiteElo "2433"]
[BlackElo "2313"]
[TimeControl "180+1"]
[EndTime "10:39:48 PDT"]
[Termination "glebus008 won on time"]

1. Nf3 {[%clk 0:03:00.9]} 1... d5 {[%clk 0:02:53]} 2. c4 {[%clk 0:02:59.3]} 2...
e6 {[%clk 0:02:52.4]} 3. d4 {[%clk 0:02:58.9]} 3... c6 {[%clk 0:02:50.9]} 4. e3
{[%clk 0:02:57.8]} 4... Bd6 {[%clk 0:02:49.6]} 5. Bd3 {[%clk 0:02:57.3]} 5... f5
{[%clk 0:02:49.1]} 6. b3 {[%clk 0:02:57.7]} 6... Nf6 {[%clk 0:02:46.4]} 7. O-O
{[%clk 0:02:57.6]} 7... Qe7 {[%clk 0:02:45.9]} 8. Bb2 {[%clk 0:02:57.7]} 8...
O-O {[%clk 0:02:40.9]} 9. Nc3 {[%clk 0:02:58]} 9... Ne4 {[%clk 0:02:39.9]} 10.
Ne2 {[%clk 0:02:57.1]} 10... Nd7 {[%clk 0:02:36.6]} 11. a3 {[%clk 0:02:46.8]}
11... Qf6 {[%clk 0:02:32.5]} 12. Rc1 {[%clk 0:02:41.6]} 12... g5 {[%clk
0:02:31]} 13. Ne1 {[%clk 0:02:12.9]} 13... g4 {[%clk 0:02:24.3]} 14. g3 {[%clk
0:02:10.7]} 14... Kh8 {[%clk 0:02:18]} 15. Ng2 {[%clk 0:02:09.6]} 15... Rg8
{[%clk 0:02:16.4]} 16. b4 {[%clk 0:02:07.9]} 16... Rg6 {[%clk 0:02:13.1]} 17. b5
{[%clk 0:01:59.5]} 17... Rh6 {[%clk 0:02:11]} 18. bxc6 {[%clk 0:01:49.4]} 18...
bxc6 {[%clk 0:02:10.2]} 19. cxd5 {[%clk 0:01:49.1]} 19... cxd5 {[%clk
0:02:09.9]} 20. Bxe4 {[%clk 0:01:36.2]} 20... fxe4 {[%clk 0:02:05.6]} 21. Ngf4
{[%clk 0:01:35.7]} 21... Ba6 {[%clk 0:01:58.7]} 22. Rc6 {[%clk 0:01:23.6]} 22...
Bxf4 {[%clk 0:01:47.2]} 23. Rxa6 {[%clk 0:01:21.1]} 23... Bg5 {[%clk 0:01:33.9]}
24. Nc3 {[%clk 0:01:14]} 24... Qf5 {[%clk 0:01:22.9]} 25. Nb1 {[%clk 0:00:45.3]}
25... Nb6 {[%clk 0:01:18.4]} 26. Nd2 {[%clk 0:00:44.1]} 26... Be7 {[%clk
0:01:00.4]} 27. Bc3 {[%clk 0:00:40.7]} 27... Qh5 {[%clk 0:00:54]} 28. h4 {[%clk
0:00:40.5]} 28... Bxh4 {[%clk 0:00:52.1]} 29. Kg2 {[%clk 0:00:37.2]} 29... Bxg3
{[%clk 0:00:44.4]} 30. Rh1 {[%clk 0:00:29.1]} 30... Qxh1+ {[%clk 0:00:43.5]} 31.
Qxh1 {[%clk 0:00:30]} 31... Rxh1 {[%clk 0:00:43.5]} 32. Kxh1 {[%clk 0:00:30.9]}
32... Bxf2 {[%clk 0:00:42.2]} 33. Nf1 {[%clk 0:00:31.2]} 33... Nc4 {[%clk
0:00:37.4]} 34. Kg2 {[%clk 0:00:22.7]} 34... Bxe3 {[%clk 0:00:36.5]} 35. Nxe3
{[%clk 0:00:22.9]} 35... Nxe3+ {[%clk 0:00:36]} 36. Kg3 {[%clk 0:00:23.8]} 36...
h5 {[%clk 0:00:27.4]} 37. Bd2 {[%clk 0:00:23]} 37... Nf5+ {[%clk 0:00:26.3]} 38.
Kf4 {[%clk 0:00:22.7]} 38... Rf8 {[%clk 0:00:21.1]} 39. Ke5 {[%clk 0:00:22.3]}
39... e3 {[%clk 0:00:18.2]} 40. Be1 {[%clk 0:00:20.3]} 40... Re8 {[%clk
0:00:13.8]} 41. Rxa7 {[%clk 0:00:19.7]} 41... g3 {[%clk 0:00:13.4]} 0-1

[Event "*** SCC Grand Prix: Titled Tuesday Blitz"]
[Site "Chess.com"]
[Date "2020.10.13"]
[Round "4"]
[White "ural58"]
[Black "kinga2008"]
[Result "0-1"]
[WhiteElo "2325"]
[BlackElo "2181"]
[TimeControl "180+1"]
[EndTime "10:39:48 PDT"]
[Termination "kinga2008 won by resignation"]

1. e4 {[%clk 0:02:13]} 1... c5 {[%clk 0:03:00.9]} 2. b3 {[%clk 0:02:12.4]} 2...
d5 {[%clk 0:03:00.4]} 3. exd5 {[%clk 0:02:11.6]} 3... Qxd5 {[%clk 0:02:59.2]} 4.
Nc3 {[%clk 0:02:11.1]} 4... Qd8 {[%clk 0:02:55.7]} 5. Nf3 {[%clk 0:02:11.1]}
5... Nc6 {[%clk 0:02:53.4]} 6. Bb5 {[%clk 0:02:11]} 6... Bd7 {[%clk 0:02:52.2]}
7. O-O {[%clk 0:02:11.5]} 7... e6 {[%clk 0:02:33.4]} 8. Bb2 {[%clk 0:01:58.5]}
8... Nf6 {[%clk 0:02:28.2]} 9. a4 {[%clk 0:01:34.1]} 9... Bd6 {[%clk 0:02:21.1]}
10. d4 {[%clk 0:01:34]} 10... cxd4 {[%clk 0:02:19.9]} 11. Nxd4 {[%clk
0:01:34.9]} 11... Bc7 {[%clk 0:02:16.7]} 12. Nxc6 {[%clk 0:01:33.7]} 12... bxc6
{[%clk 0:02:15.8]} 13. Bd3 {[%clk 0:01:33]} 13... O-O {[%clk 0:02:14.3]} 14. Ne4
{[%clk 0:01:29.6]} 14... Nxe4 {[%clk 0:02:13.7]} 15. Bxe4 {[%clk 0:01:30.5]}
15... Qh4 {[%clk 0:02:12.4]} 16. g3 {[%clk 0:01:20.7]} 16... Qxe4 {[%clk
0:02:07.1]} 17. Qxd7 {[%clk 0:01:20.4]} 17... Bb6 {[%clk 0:02:06.3]} 18. a5
{[%clk 0:01:15.1]} 18... Bc5 {[%clk 0:02:01.6]} 19. Qd2 {[%clk 0:00:40.9]} 19...
Rad8 {[%clk 0:01:58.9]} 20. Qg5 {[%clk 0:00:30.3]} 20... Bd4 {[%clk 0:01:54.8]}
21. Bxd4 {[%clk 0:00:27.6]} 21... Qxd4 {[%clk 0:01:53.7]} 22. a6 {[%clk
0:00:20.6]} 22... Qb6 {[%clk 0:01:51.1]} 23. Qe3 {[%clk 0:00:17.4]} 23... Qxe3
{[%clk 0:01:49.5]} 24. fxe3 {[%clk 0:00:18.3]} 24... Rd2 {[%clk 0:01:50.2]} 25.
Rf2 {[%clk 0:00:18.6]} 25... Rfd8 {[%clk 0:01:49.6]} 26. Raf1 {[%clk 0:00:15.1]}
26... Rxf2 {[%clk 0:01:48.1]} 27. Rxf2 {[%clk 0:00:16]} 27... Rd1+ {[%clk
0:01:48.3]} 28. Kg2 {[%clk 0:00:16.2]} 28... Ra1 {[%clk 0:01:48.6]} 29. Rd2
{[%clk 0:00:16.2]} 29... g6 {[%clk 0:01:44.5]} 30. Rd7 {[%clk 0:00:15.4]} 30...
Rxa6 {[%clk 0:01:44.1]} 31. Rc7 {[%clk 0:00:16]} 31... Kg7 {[%clk 0:01:42.7]}
32. Kf3 {[%clk 0:00:16.3]} 32... Kf6 {[%clk 0:01:43]} 33. h4 {[%clk 0:00:16.9]}
33... Rb6 {[%clk 0:01:43.3]} 34. Rxa7 {[%clk 0:00:15.5]} 34... Rb5 {[%clk
0:01:42.9]} 35. Ke2 {[%clk 0:00:14.2]} 35... Rc5 {[%clk 0:01:42.5]} 36. c4
{[%clk 0:00:14.2]} 36... g5 {[%clk 0:01:34.7]} 37. h5 {[%clk 0:00:12.4]} 37...
g4 {[%clk 0:01:34.7]} 38. Rc7 {[%clk 0:00:11.7]} 38... Rxh5 {[%clk 0:01:16.2]}
39. Rxc6 {[%clk 0:00:11.3]} 39... Rh2+ {[%clk 0:01:16.3]} 40. Kd3 {[%clk
0:00:11.4]} 40... Rb2 {[%clk 0:01:15.3]} 41. Kc3 {[%clk 0:00:10.7]} 41... Rg2
{[%clk 0:01:15.3]} 42. b4 {[%clk 0:00:09.8]} 42... Rxg3 {[%clk 0:01:15.7]} 43.
Kd4 {[%clk 0:00:09.8]} 43... h5 {[%clk 0:01:15.6]} 44. Ra6 {[%clk 0:00:10.2]}
44... h4 {[%clk 0:01:14.3]} 45. b5 {[%clk 0:00:11.1]} 45... h3 {[%clk
0:01:13.9]} 46. Ra1 {[%clk 0:00:11.6]} 46... h2 {[%clk 0:01:14.1]} 47. Rh1
{[%clk 0:00:11.7]} 47... Rh3 {[%clk 0:01:09.1]} 48. b6 {[%clk 0:00:11.4]} 48...
g3 {[%clk 0:01:08.9]} 49. b7 {[%clk 0:00:09.7]} 49... Rh8 {[%clk 0:01:07.2]} 50.
c5 {[%clk 0:00:09.6]} 50... e5+ {[%clk 0:01:01.4]} 51. Kc4 {[%clk 0:00:08.6]}
51... Ke6 {[%clk 0:00:58.4]} 52. c6 {[%clk 0:00:07.2]} 52... Kd6 {[%clk
0:00:58.5]} 53. Kb5 {[%clk 0:00:07.5]} 53... Kc7 {[%clk 0:00:59.1]} 54. Ka6
{[%clk 0:00:05.5]} 54... g2 {[%clk 0:00:56.3]} 55. Rd1 {[%clk 0:00:02.9]} 55...
g1=Q {[%clk 0:00:51.8]} 56. Rd7+ {[%clk 0:00:03.2]} 56... Kxc6 {[%clk
0:00:52.3]} 0-1